[Event "January 9 Early 2024"]
[Site "https://www.chess.com"]
[Date "2024.01.11"]
[Round "7"]
[White "Mizzi, Jack"]
[Black "Suyarov, Mukhammadzokhid"]
[Result "0-1"]
[Board "217"]
[TimeControl "180+1"]
[WhiteFideId "5602521"]
[BlackFideId "14210495"]
[WhiteElo "2493"]
[BlackElo "2749"]
[WhiteTeam "MLT"]
[BlackTeam "UZB"]
[WhiteClock "0:00:01"]
[BlackClock "0:00:17"]

1. d4 {[%clk 0:03:00]}  Nf6 {[%clk 0:02:58]} 2. c4 {[%clk 0:03:00]}  e6 {[%clk 0:02:58]} 3. g3 {[%clk 0:03:00]}  c5 {[%clk 0:02:58]} 4. d5 {[%clk 0:03:00]}  exd5 {[%clk 0:02:59]} 5. cxd5 {[%clk 0:03:01]}  d6 {[%clk 0:03:00]} 6. Bg2 {[%clk 0:03:01]}  g6 {[%clk 0:03:01]} 7. Nf3 {[%clk 0:03:01]}  Bg7 {[%clk 0:03:02]} 8. O-O {[%clk 0:03:02]}  O-O {[%clk 0:03:03]} 9. Nc3 {[%clk 0:03:02]}  a6 {[%clk 0:03:03]} 10. a4 {[%clk 0:03:02]}  Re8 {[%clk 0:03:03]} 11. Nd2 {[%clk 0:03:02]}  Nbd7 {[%clk 0:03:02]} 12. Nc4 {[%clk 0:03:01]}  Ne5 {[%clk 0:03:02]} 13. Nxe5 {[%clk 0:03:01]}  Rxe5 {[%clk 0:03:03]} 14. e4 {[%clk 0:03:01]}  Re8 {[%clk 0:03:03]} 15. Re1 {[%clk 0:03:01]}  Rb8 {[%clk 0:02:54]} 16. a5 {[%clk 0:03:00]}  Bd7 {[%clk 0:02:54]} 17. h3 {[%clk 0:02:54]}  b5 {[%clk 0:02:52]} 18. axb6 {[%clk 0:02:54]}  Qxb6 {[%clk 0:02:52]} 19. Qc2 {[%clk 0:02:22]}  Bb5 {[%clk 0:02:52]} 20. Bf4 {[%clk 0:02:11]}  Nd7 {[%clk 0:02:50]} 21. Na4 {[%clk 0:01:42]}  Qc7 {[%clk 0:02:34]} 22. Nc3 {[%clk 0:01:35]}  Bd4 {[%clk 0:02:30]} 23. Red1 {[%clk 0:01:29]}  Qb6 {[%clk 0:02:22]} 24. h4 {[%clk 0:01:24]}  Ne5 {[%clk 0:02:20]} 25. Na4 {[%clk 0:01:02]}  Bxa4 {[%clk 0:02:19]} 26. Qxa4 {[%clk 0:01:01]}  Qxb2 {[%clk 0:02:03]} 27. Ra2 {[%clk 0:00:48]}  Qc3 {[%clk 0:01:54]} 28. Qxa6 {[%clk 0:00:28]}  Rb2 {[%clk 0:01:43]} 29. Rf1 {[%clk 0:00:09]}  Ng4 {[%clk 0:01:39]} 30. Qa4 {[%clk 0:00:03]}  Reb8 {[%clk 0:01:27]} 31. Ra3 {[%clk 0:00:03]}  Bxf2+ {[%clk 0:01:09]} 32. Kh1 {[%clk 0:00:02]}  Qf6 {[%clk 0:00:58]} 33. Qd7 {[%clk 0:00:02]}  Rb1 {[%clk 0:00:50]} 34. Rxb1 {[%clk 0:00:01]}  Rxb1+ {[%clk 0:00:49]} 35. Bf1 {[%clk 0:00:02]}  Rxf1+ {[%clk 0:00:39]} 36. Kg2 {[%clk 0:00:02]}  Rg1+ {[%clk 0:00:39]} 37. Kf3 {[%clk 0:00:03]}  Ne5+ {[%clk 0:00:40]} 38. Kxf2 {[%clk 0:00:02]}  Nxd7 {[%clk 0:00:40]} 39. Kxg1 {[%clk 0:00:02]}  Qd4+ {[%clk 0:00:39]} 40. Kf1 {[%clk 0:00:02]}  Qxe4 {[%clk 0:00:36]} 41. Ra7 {[%clk 0:00:02]}  Nf8 {[%clk 0:00:32]} 42. Ra8 {[%clk 0:00:01]}  Qxd5 {[%clk 0:00:31]} 43. Rd8 {[%clk 0:00:01]}  Qd3+ {[%clk 0:00:28]} 44. Kg1 {[%clk 0:00:01]}  Kg7 {[%clk 0:00:21]} 45. h5 {[%clk 0:00:01]}  Qd1+ {[%clk 0:00:20]} 46. Kg2 {[%clk 0:00:01]}  Qxh5 {[%clk 0:00:20]} 47. Bxd6 {[%clk 0:00:02]}  Ne6 {[%clk 0:00:21]} 48. Re8 {[%clk 0:00:01]}  c4 {[%clk 0:00:20]} 49. Bb4 {[%clk 0:00:01]}  Qd5+ {[%clk 0:00:19]} 50. Kf2 {[%clk 0:00:01]}  Qd4+ {[%clk 0:00:18]} 51. Ke2 {[%clk 0:00:01]}  Qb2+ {[%clk 0:00:17]} 0-1

[Event "January 9 Early 2024"]
[Site "https://www.chess.com"]
[Date "2024.01.11"]
[Round "7"]
[White "Haring, Filip"]
[Black "Lymar, Vladislav"]
[Result "1-0"]
[Board "222"]
[TimeControl "180+1"]
[WhiteFideId "14933080"]
[BlackFideId "14162180"]
[WhiteElo "2712"]
[BlackElo "2533"]
[WhiteTeam "SVK"]
[BlackTeam "UKR"]
[WhiteClock "0:00:03"]
[BlackClock "0:00:01"]

1. Nf3 {[%clk 0:03:00]}  d6 {[%clk 0:02:55]} 2. c4 {[%clk 0:03:00]}  e5 {[%clk 0:02:55]} 3. Nc3 {[%clk 0:02:56]}  f5 {[%clk 0:02:55]} 4. e3 {[%clk 0:02:51]}  Nf6 {[%clk 0:02:54]} 5. d4 {[%clk 0:02:51]}  Nc6 {[%clk 0:02:51]} 6. Be2 {[%clk 0:02:49]}  Be7 {[%clk 0:02:50]} 7. O-O {[%clk 0:02:49]}  O-O {[%clk 0:02:49]} 8. a3 {[%clk 0:02:47]}  a5 {[%clk 0:02:36]} 9. Rb1 {[%clk 0:02:47]}  Kh8 {[%clk 0:02:33]} 10. b4 {[%clk 0:02:43]}  axb4 {[%clk 0:02:32]} 11. axb4 {[%clk 0:02:44]}  e4 {[%clk 0:02:28]} 12. Nd2 {[%clk 0:02:43]}  Qe8 {[%clk 0:02:23]} 13. Nb5 {[%clk 0:02:27]}  Bd8 {[%clk 0:02:22]} 14. c5 {[%clk 0:02:27]}  d5 {[%clk 0:02:20]} 15. Nc3 {[%clk 0:02:22]}  f4 {[%clk 0:01:59]} 16. b5 {[%clk 0:02:20]}  fxe3 {[%clk 0:01:45]} 17. fxe3 {[%clk 0:02:14]}  Ne7 {[%clk 0:01:42]} 18. Rf2 {[%clk 0:01:52]}  Nf5 {[%clk 0:01:33]} 19. Nf1 {[%clk 0:01:51]}  Qg6 {[%clk 0:01:24]} 20. c6 {[%clk 0:01:42]}  b6 {[%clk 0:01:12]} 21. Qb3 {[%clk 0:01:36]}  Be6 {[%clk 0:01:04]} 22. Ba3 {[%clk 0:01:16]}  Rf7 {[%clk 0:00:56]} 23. Bb4 {[%clk 0:01:12]}  Nh4 {[%clk 0:00:53]} 24. Ng3 {[%clk 0:01:03]}  Qg5 {[%clk 0:00:43]} 25. Nd1 {[%clk 0:00:46]}  h5 {[%clk 0:00:40]} 26. Rb2 {[%clk 0:00:36]}  Kg8 {[%clk 0:00:37]} 27. Ra2 {[%clk 0:00:35]}  Rb8 {[%clk 0:00:33]} 28. Ra7 {[%clk 0:00:33]}  Ng6 {[%clk 0:00:25]} 29. Nf1 {[%clk 0:00:21]}  Bg4 {[%clk 0:00:21]} 30. Nc3 {[%clk 0:00:20]}  Bxe2 {[%clk 0:00:19]} 31. Nxe2 {[%clk 0:00:21]}  Ng4 {[%clk 0:00:12]} 32. Rxf7 {[%clk 0:00:22]}  Kxf7 {[%clk 0:00:13]} 33. Bd6 {[%clk 0:00:15]}  Rc8 {[%clk 0:00:12]} 34. Bf4 {[%clk 0:00:12]}  Qf5 {[%clk 0:00:11]} 35. Nfg3 {[%clk 0:00:11]}  Qe6 {[%clk 0:00:11]} 36. Nxh5 {[%clk 0:00:11]}  Nh4 {[%clk 0:00:07]} 37. Bg3 {[%clk 0:00:09]}  Ng6 {[%clk 0:00:02]} 38. Nhf4 {[%clk 0:00:09]}  Nxf4 {[%clk 0:00:02]} 39. Nxf4 {[%clk 0:00:10]}  Qf5 {[%clk 0:00:02]} 40. Qxd5+ {[%clk 0:00:08]}  Qxd5 {[%clk 0:00:02]} 41. Nxd5 {[%clk 0:00:09]}  Ke6 {[%clk 0:00:03]} 42. Nxc7+ {[%clk 0:00:08]}  Bxc7 {[%clk 0:00:03]} 43. Rxc7 {[%clk 0:00:09]}  Ra8 {[%clk 0:00:02]} 44. Kf1 {[%clk 0:00:04]}  Ra1+ {[%clk 0:00:02]} 45. Ke2 {[%clk 0:00:05]}  Ra2+ {[%clk 0:00:01]} 46. Kd1 {[%clk 0:00:05]}  Nxe3+ {[%clk 0:00:02]} 47. Kc1 {[%clk 0:00:05]}  Rc2+ {[%clk 0:00:02]} 48. Kb1 {[%clk 0:00:05]}  Kd5 {[%clk 0:00:03]} 49. Rd7+ {[%clk 0:00:05]}  Kc4 {[%clk 0:00:03]} 50. Bf4 {[%clk 0:00:03]}  Kb3 {[%clk 0:00:01]} 51. Bxe3 {[%clk 0:00:03]}  Re2 {[%clk 0:00:01]} 52. Bc1 {[%clk 0:00:03]}  e3 {[%clk 0:00:01]} 53. c7 {[%clk 0:00:03]}  Rc2 {[%clk 0:00:02]} 54. Bxe3 {[%clk 0:00:03]}  Rxc7 {[%clk 0:00:01]} 55. Rxc7 {[%clk 0:00:03]} 1-0

[Event "January 9 Early 2024"]
[Site "https://www.chess.com"]
[Date "2024.01.11"]
[Round "7"]
[White "Batsiashvili, Nino"]
[Black "Ingebretsen, Jens E"]
[Result "1-0"]
[Board "226"]
[TimeControl "180+1"]
[WhiteFideId "13602993"]
[BlackFideId "1522965"]
[WhiteElo "2525"]
[BlackElo "2597"]
[WhiteTeam "GEO"]
[BlackTeam "NOR"]
[WhiteClock "0:00:14"]
[BlackClock "0:00:10"]

1. Nf3 {[%clk 0:02:54]}  d5 {[%clk 0:02:58]} 2. e3 {[%clk 0:02:54]}  Nf6 {[%clk 0:02:58]} 3. c4 {[%clk 0:02:54]}  c6 {[%clk 0:02:57]} 4. Nc3 {[%clk 0:02:52]}  Bg4 {[%clk 0:02:56]} 5. d4 {[%clk 0:02:47]}  e6 {[%clk 0:02:56]} 6. Qb3 {[%clk 0:02:43]}  Qc8 {[%clk 0:02:40]} 7. Ne5 {[%clk 0:02:42]}  Nbd7 {[%clk 0:02:39]} 8. Nxg4 {[%clk 0:02:41]}  Nxg4 {[%clk 0:02:40]} 9. Bd2 {[%clk 0:02:38]}  Bd6 {[%clk 0:02:34]} 10. Be2 {[%clk 0:02:36]}  h5 {[%clk 0:02:28]} 11. h3 {[%clk 0:02:34]}  Ngf6 {[%clk 0:02:28]} 12. Rc1 {[%clk 0:02:30]}  Qb8 {[%clk 0:02:22]} 13. cxd5 {[%clk 0:02:09]}  exd5 {[%clk 0:02:20]} 14. Qc2 {[%clk 0:02:09]}  Nf8 {[%clk 0:01:55]} 15. Bd3 {[%clk 0:02:06]}  Ne6 {[%clk 0:01:54]} 16. Bf5 {[%clk 0:02:05]}  O-O {[%clk 0:01:49]} 17. Ne2 {[%clk 0:01:43]}  Ng5 {[%clk 0:01:38]} 18. f3 {[%clk 0:01:41]}  Bg3+ {[%clk 0:01:32]} 19. Kf1 {[%clk 0:01:35]}  h4 {[%clk 0:01:32]} 20. e4 {[%clk 0:01:29]}  Ne6 {[%clk 0:01:24]} 21. e5 {[%clk 0:01:29]}  Nh5 {[%clk 0:01:17]} 22. Be3 {[%clk 0:01:17]}  Qe8 {[%clk 0:01:14]} 23. Qd2 {[%clk 0:01:12]}  g6 {[%clk 0:01:12]} 24. Bg4 {[%clk 0:01:12]}  Nhg7 {[%clk 0:01:05]} 25. Nxg3 {[%clk 0:01:10]}  hxg3 {[%clk 0:01:05]} 26. Qe1 {[%clk 0:01:03]}  c5 {[%clk 0:01:04]} 27. Qxg3 {[%clk 0:01:01]}  cxd4 {[%clk 0:01:03]} 28. Bh6 {[%clk 0:00:58]}  Qb5+ {[%clk 0:01:00]} 29. Kg1 {[%clk 0:00:57]}  Rfc8 {[%clk 0:01:01]} 30. Kh2 {[%clk 0:00:57]}  Qxb2 {[%clk 0:00:54]} 31. Qh4 {[%clk 0:00:51]}  d3 {[%clk 0:00:45]} 32. Bxg7 {[%clk 0:00:47]}  Kxg7 {[%clk 0:00:30]} 33. Qf6+ {[%clk 0:00:46]}  Kh6 {[%clk 0:00:29]} 34. Rxc8 {[%clk 0:00:36]}  Rxc8 {[%clk 0:00:29]} 35. Bxe6 {[%clk 0:00:37]}  fxe6 {[%clk 0:00:28]} 36. Qxe6 {[%clk 0:00:37]}  Qc2 {[%clk 0:00:24]} 37. h4 {[%clk 0:00:23]}  d2 {[%clk 0:00:24]} 38. h5 {[%clk 0:00:24]}  Qf5 {[%clk 0:00:17]} 39. Qxf5 {[%clk 0:00:18]}  gxf5 {[%clk 0:00:18]} 40. Rd1 {[%clk 0:00:18]}  Rc2 {[%clk 0:00:19]} 41. Kg3 {[%clk 0:00:18]}  Kxh5 {[%clk 0:00:17]} 42. Kf4 {[%clk 0:00:19]}  Kg6 {[%clk 0:00:18]} 43. Ke3 {[%clk 0:00:17]}  Rxa2 {[%clk 0:00:18]} 44. f4 {[%clk 0:00:15]}  b5 {[%clk 0:00:16]} 45. Kd4 {[%clk 0:00:12]}  a5 {[%clk 0:00:13]} 46. Kxd5 {[%clk 0:00:12]}  a4 {[%clk 0:00:14]} 47. Kc5 {[%clk 0:00:11]}  Rb2 {[%clk 0:00:13]} 48. e6 {[%clk 0:00:10]}  Kf6 {[%clk 0:00:12]} 49. Kd6 {[%clk 0:00:11]}  Rc2 {[%clk 0:00:06]} 50. e7 {[%clk 0:00:10]}  Rc8 {[%clk 0:00:06]} 51. Kd7 {[%clk 0:00:11]}  Ra8 {[%clk 0:00:06]} 52. e8=Q {[%clk 0:00:11]}  Rxe8 {[%clk 0:00:07]} 53. Kxe8 {[%clk 0:00:11]}  b4 {[%clk 0:00:08]} 54. Rxd2 {[%clk 0:00:12]}  b3 {[%clk 0:00:09]} 55. Rd6+ {[%clk 0:00:11]}  Kg7 {[%clk 0:00:09]} 56. Rb6 {[%clk 0:00:12]}  Kg8 {[%clk 0:00:08]} 57. Ke7 {[%clk 0:00:12]}  Kg7 {[%clk 0:00:08]} 58. Ke6 {[%clk 0:00:13]}  Kg6 {[%clk 0:00:09]} 59. Ke5+ {[%clk 0:00:13]}  Kh5 {[%clk 0:00:10]} 60. Kxf5 {[%clk 0:00:14]}  Kh4 {[%clk 0:00:10]} 61. g4 {[%clk 0:00:14]}  Kg3 {[%clk 0:00:11]} 62. g5 {[%clk 0:00:15]}  Kf3 {[%clk 0:00:09]} 63. g6 {[%clk 0:00:15]}  b2 {[%clk 0:00:10]} 64. Rxb2 {[%clk 0:00:14]} 1-0

[Event "January 9 Early 2024"]
[Site "https://www.chess.com"]
[Date "2024.01.11"]
[Round "7"]
[White "Bachmann, Axel"]
[Black "Van Foreest, Jorden"]
[Result "1/2-1/2"]
[Board "227"]
[TimeControl "180+1"]
[WhiteFideId "3700488"]
[BlackFideId "1039784"]
[WhiteElo "2906"]
[BlackElo "3016"]
[WhiteTeam "PAR"]
[BlackTeam "NED"]
[WhiteClock "0:00:13"]
[BlackClock "0:00:19"]

1. e4 {[%clk 0:02:59]}  c6 {[%clk 0:02:59]} 2. d3 {[%clk 0:02:57]}  d5 {[%clk 0:02:59]} 3. Nd2 {[%clk 0:02:57]}  e5 {[%clk 0:02:58]} 4. Ngf3 {[%clk 0:02:58]}  Bd6 {[%clk 0:02:59]} 5. g3 {[%clk 0:02:58]}  Nf6 {[%clk 0:02:58]} 6. Bg2 {[%clk 0:02:58]}  O-O {[%clk 0:02:58]} 7. O-O {[%clk 0:02:58]}  Re8 {[%clk 0:02:58]} 8. Re1 {[%clk 0:02:54]}  h6 {[%clk 0:02:59]} 9. d4 {[%clk 0:02:41]}  Nbd7 {[%clk 0:02:49]} 10. exd5 {[%clk 0:02:38]}  cxd5 {[%clk 0:02:36]} 11. dxe5 {[%clk 0:02:38]}  Nxe5 {[%clk 0:02:37]} 12. Nxe5 {[%clk 0:02:36]}  Bxe5 {[%clk 0:02:37]} 13. Nf3 {[%clk 0:02:32]}  Bg4 {[%clk 0:02:34]} 14. c3 {[%clk 0:02:25]}  Bc7 {[%clk 0:02:20]} 15. Rxe8+ {[%clk 0:02:21]}  Qxe8 {[%clk 0:02:21]} 16. Be3 {[%clk 0:02:20]}  Bb6 {[%clk 0:02:21]} 17. Bxb6 {[%clk 0:02:11]}  axb6 {[%clk 0:02:22]} 18. Qb3 {[%clk 0:02:11]}  Bxf3 {[%clk 0:02:17]} 19. Bxf3 {[%clk 0:02:12]}  Qe6 {[%clk 0:02:12]} 20. Rd1 {[%clk 0:02:12]}  Ra5 {[%clk 0:02:05]} 21. Rd4 {[%clk 0:02:02]}  Rc5 {[%clk 0:02:01]} 22. Kg2 {[%clk 0:02:01]}  g6 {[%clk 0:01:56]} 23. Qa4 {[%clk 0:01:49]}  Kg7 {[%clk 0:01:54]} 24. Qd1 {[%clk 0:01:43]}  Qe5 {[%clk 0:01:49]} 25. Rb4 {[%clk 0:01:40]}  Rc6 {[%clk 0:01:42]} 26. Qd4 {[%clk 0:01:40]}  Qxd4 {[%clk 0:01:41]} 27. Rxd4 {[%clk 0:01:41]}  Rc5 {[%clk 0:01:36]} 28. Kf1 {[%clk 0:01:34]}  Kf8 {[%clk 0:01:36]} 29. Rb4 {[%clk 0:01:14]}  Rc6 {[%clk 0:01:35]} 30. c4 {[%clk 0:01:06]}  Rxc4 {[%clk 0:01:29]} 31. Rxb6 {[%clk 0:01:06]}  Ne4 {[%clk 0:01:23]} 32. Bxe4 {[%clk 0:01:04]}  dxe4 {[%clk 0:01:21]} 33. Rxb7 {[%clk 0:01:04]}  f5 {[%clk 0:01:18]} 34. Ke1 {[%clk 0:00:58]}  Rc1+ {[%clk 0:01:05]} 35. Kd2 {[%clk 0:00:58]}  Rf1 {[%clk 0:01:03]} 36. Ke2 {[%clk 0:00:54]}  Ra1 {[%clk 0:01:00]} 37. a3 {[%clk 0:00:54]}  Kg8 {[%clk 0:00:55]} 38. h4 {[%clk 0:00:55]}  Kf8 {[%clk 0:00:49]} 39. h5 {[%clk 0:00:51]}  gxh5 {[%clk 0:00:42]} 40. Rb5 {[%clk 0:00:51]}  f4 {[%clk 0:00:43]} 41. Rf5+ {[%clk 0:00:50]}  Kg7 {[%clk 0:00:41]} 42. Rxf4 {[%clk 0:00:51]}  Ra2 {[%clk 0:00:41]} 43. Rxe4 {[%clk 0:00:51]}  Rxb2+ {[%clk 0:00:42]} 44. Kf3 {[%clk 0:00:51]}  Kg6 {[%clk 0:00:35]} 45. Re2 {[%clk 0:00:52]}  Rb3+ {[%clk 0:00:34]} 46. Re3 {[%clk 0:00:52]}  Rb2 {[%clk 0:00:35]} 47. a4 {[%clk 0:00:46]}  Ra2 {[%clk 0:00:35]} 48. Re4 {[%clk 0:00:46]}  Ra3+ {[%clk 0:00:33]} 49. Ke2 {[%clk 0:00:46]}  Ra2+ {[%clk 0:00:29]} 50. Ke3 {[%clk 0:00:46]}  Ra3+ {[%clk 0:00:30]} 51. Kf4 {[%clk 0:00:35]}  Ra2 {[%clk 0:00:30]} 52. Kf3 {[%clk 0:00:34]}  Ra3+ {[%clk 0:00:30]} 53. Kg2 {[%clk 0:00:35]}  Kf5 {[%clk 0:00:29]} 54. Rf4+ {[%clk 0:00:35]}  Kg5 {[%clk 0:00:23]} 55. Kf1 {[%clk 0:00:32]}  Ra2 {[%clk 0:00:24]} 56. Ke1 {[%clk 0:00:32]}  Rb2 {[%clk 0:00:25]} 57. Kd1 {[%clk 0:00:32]}  h4 {[%clk 0:00:25]} 58. Rxh4 {[%clk 0:00:22]}  Rxf2 {[%clk 0:00:25]} 59. Kc1 {[%clk 0:00:19]}  Rf3 {[%clk 0:00:24]} 60. Rh3 {[%clk 0:00:17]}  Ra3 {[%clk 0:00:24]} 61. Kd2 {[%clk 0:00:14]}  h5 {[%clk 0:00:23]} 62. Ke2 {[%clk 0:00:14]}  Rxa4 {[%clk 0:00:18]} 63. Kf2 {[%clk 0:00:14]}  Ra2+ {[%clk 0:00:18]} 64. Kf3 {[%clk 0:00:14]}  Ra1 {[%clk 0:00:18]} 65. Kf2 {[%clk 0:00:15]}  Ra3 {[%clk 0:00:19]} 66. Rh4 {[%clk 0:00:14]}  Ra2+ {[%clk 0:00:19]} 67. Kf3 {[%clk 0:00:13]} 1/2-1/2

[Event "January 9 Early 2024"]
[Site "https://www.chess.com"]
[Date "2024.01.11"]
[Round "7"]
[White "Keymer, Vincent"]
[Black "Rakhmatullaev, Almas"]
[Result "1-0"]
[Board "232"]
[TimeControl "180+1"]
[WhiteFideId "12940690"]
[BlackFideId "14205793"]
[WhiteElo "3025"]
[BlackElo "2833"]
[WhiteTeam "GER"]
[BlackTeam "UZB"]
[WhiteClock "0:00:05"]
[BlackClock "0:00:03"]

1. Nf3 {[%clk 0:02:53]}  Nf6 {[%clk 0:02:59]} 2. c4 {[%clk 0:02:52]}  e6 {[%clk 0:02:59]} 3. Nc3 {[%clk 0:02:53]}  d5 {[%clk 0:02:59]} 4. e3 {[%clk 0:02:54]}  c6 {[%clk 0:02:54]} 5. b3 {[%clk 0:02:54]}  Be7 {[%clk 0:02:52]} 6. Bb2 {[%clk 0:02:54]}  Nbd7 {[%clk 0:02:52]} 7. d4 {[%clk 0:02:55]}  O-O {[%clk 0:02:51]} 8. Bd3 {[%clk 0:02:55]}  b6 {[%clk 0:02:52]} 9. O-O {[%clk 0:02:53]}  Bb7 {[%clk 0:02:52]} 10. Qe2 {[%clk 0:02:52]}  Rc8 {[%clk 0:02:42]} 11. Rad1 {[%clk 0:02:49]}  Qc7 {[%clk 0:02:35]} 12. e4 {[%clk 0:02:46]}  dxe4 {[%clk 0:02:35]} 13. Nxe4 {[%clk 0:02:46]}  Nxe4 {[%clk 0:02:34]} 14. Qxe4 {[%clk 0:02:47]}  Nf6 {[%clk 0:02:34]} 15. Qh4 {[%clk 0:02:47]}  h6 {[%clk 0:02:24]} 16. Bc1 {[%clk 0:02:05]}  c5 {[%clk 0:01:48]} 17. Bxh6 {[%clk 0:02:04]}  gxh6 {[%clk 0:01:45]} 18. Qxh6 {[%clk 0:02:03]}  Be4 {[%clk 0:01:39]} 19. Bxe4 {[%clk 0:01:22]}  Nxe4 {[%clk 0:01:36]} 20. Rfe1 {[%clk 0:01:23]}  f5 {[%clk 0:01:03]} 21. Qg6+ {[%clk 0:01:08]}  Kh8 {[%clk 0:01:02]} 22. Ne5 {[%clk 0:01:08]}  Rf6 {[%clk 0:00:50]} 23. Nf7+ {[%clk 0:01:05]}  Rxf7 {[%clk 0:00:51]} 24. Qxf7 {[%clk 0:01:06]}  Bd6 {[%clk 0:00:39]} 25. Qxc7 {[%clk 0:01:00]}  Rxc7 {[%clk 0:00:35]} 26. d5 {[%clk 0:00:39]}  e5 {[%clk 0:00:25]} 27. Rd3 {[%clk 0:00:39]}  Kg7 {[%clk 0:00:21]} 28. g4 {[%clk 0:00:36]}  Ng5 {[%clk 0:00:19]} 29. Kg2 {[%clk 0:00:15]}  e4 {[%clk 0:00:19]} 30. Rde3 {[%clk 0:00:16]}  fxg4 {[%clk 0:00:14]} 31. Rxe4 {[%clk 0:00:15]}  Nxe4 {[%clk 0:00:13]} 32. Rxe4 {[%clk 0:00:16]}  Rf7 {[%clk 0:00:10]} 33. Rxg4+ {[%clk 0:00:16]}  Kf8 {[%clk 0:00:10]} 34. h4 {[%clk 0:00:13]}  Be5 {[%clk 0:00:11]} 35. Re4 {[%clk 0:00:12]}  Bd4 {[%clk 0:00:11]} 36. f3 {[%clk 0:00:07]}  Rg7+ {[%clk 0:00:11]} 37. Kh3 {[%clk 0:00:06]}  Rg1 {[%clk 0:00:11]} 38. h5 {[%clk 0:00:06]}  Rg5 {[%clk 0:00:10]} 39. Kh4 {[%clk 0:00:06]}  Bf6 {[%clk 0:00:10]} 40. Rf4 {[%clk 0:00:02]}  Kf7 {[%clk 0:00:06]} 41. h6 {[%clk 0:00:02]}  Rg6+ {[%clk 0:00:04]} 42. Kh5 {[%clk 0:00:02]}  Rg5+ {[%clk 0:00:04]} 43. Kh4 {[%clk 0:00:03]}  Rg6+ {[%clk 0:00:03]} 44. Kh5 {[%clk 0:00:04]}  Rg3 {[%clk 0:00:04]} 45. d6 {[%clk 0:00:01]}  Rh3+ {[%clk 0:00:03]} 46. Kg4 {[%clk 0:00:02]}  Rxh6 {[%clk 0:00:03]} 47. Re4 {[%clk 0:00:02]}  Rh4+ {[%clk 0:00:02]} 48. Kf5 {[%clk 0:00:02]}  Rh5+ {[%clk 0:00:03]} 49. Kf4 {[%clk 0:00:02]}  Bg5+ {[%clk 0:00:03]} 50. Kg4 {[%clk 0:00:03]}  Rh4+ {[%clk 0:00:02]} 51. Kxg5 {[%clk 0:00:03]}  Rxe4 {[%clk 0:00:02]} 52. fxe4 {[%clk 0:00:04]}  Ke6 {[%clk 0:00:03]} 53. e5 {[%clk 0:00:05]} 1-0

[Event "January 9 Early 2024"]
[Site "https://www.chess.com"]
[Date "2024.01.11"]
[Round "7"]
[White "Nord, Alexander"]
[Black "Hartikainen, Jarmo"]
[Result "1-0"]
[Board "234"]
[TimeControl "180+1"]
[WhiteFideId "1738135"]
[BlackFideId "503134"]
[WhiteElo "2342"]
[BlackElo "2157"]
[WhiteTeam "SWE"]
[BlackTeam "FIN"]
[WhiteClock "0:00:17"]
[BlackClock "0:00:15"]

1. d4 {[%clk 0:03:00]}  d5 {[%clk 0:02:59]} 2. c4 {[%clk 0:03:00]}  c5 {[%clk 0:02:59]} 3. Nf3 {[%clk 0:02:56]}  Nf6 {[%clk 0:02:59]} 4. e3 {[%clk 0:02:53]}  e6 {[%clk 0:02:57]} 5. Nc3 {[%clk 0:02:52]}  Nc6 {[%clk 0:02:58]} 6. cxd5 {[%clk 0:02:47]}  Nxd5 {[%clk 0:02:57]} 7. Be2 {[%clk 0:02:46]}  Be7 {[%clk 0:02:56]} 8. O-O {[%clk 0:02:45]}  O-O {[%clk 0:02:57]} 9. dxc5 {[%clk 0:02:44]}  Nxc3 {[%clk 0:02:54]} 10. bxc3 {[%clk 0:02:43]}  Bxc5 {[%clk 0:02:52]} 11. Qc2 {[%clk 0:02:23]}  Qe7 {[%clk 0:02:47]} 12. Bb2 {[%clk 0:02:08]}  e5 {[%clk 0:02:38]} 13. c4 {[%clk 0:02:00]}  f6 {[%clk 0:02:35]} 14. Rfd1 {[%clk 0:01:52]}  Be6 {[%clk 0:02:34]} 15. Bd3 {[%clk 0:01:37]}  g6 {[%clk 0:02:21]} 16. Be4 {[%clk 0:01:36]}  Nb4 {[%clk 0:02:05]} 17. Qc3 {[%clk 0:01:18]}  Rfd8 {[%clk 0:02:03]} 18. h3 {[%clk 0:01:09]}  Rac8 {[%clk 0:01:58]} 19. a3 {[%clk 0:01:02]}  Nc6 {[%clk 0:01:48]} 20. Qb3 {[%clk 0:00:56]}  Rxd1+ {[%clk 0:01:12]} 21. Rxd1 {[%clk 0:00:55]}  Bb6 {[%clk 0:00:58]} 22. Bd5 {[%clk 0:00:38]}  Kg7 {[%clk 0:00:52]} 23. Bc3 {[%clk 0:00:26]}  Rd8 {[%clk 0:00:48]} 24. Rd2 {[%clk 0:00:15]}  Bxd5 {[%clk 0:00:44]} 25. cxd5 {[%clk 0:00:15]}  Na5 {[%clk 0:00:44]} 26. Qa2 {[%clk 0:00:09]}  Qc5 {[%clk 0:00:40]} 27. Bb4 {[%clk 0:00:08]}  Qc1+ {[%clk 0:00:40]} 28. Kh2 {[%clk 0:00:08]}  e4 {[%clk 0:00:36]} 29. Nd4 {[%clk 0:00:06]}  Bxd4 {[%clk 0:00:30]} 30. Rxd4 {[%clk 0:00:05]}  Qc7+ {[%clk 0:00:23]} 31. d6 {[%clk 0:00:05]}  Qb6 {[%clk 0:00:22]} 32. Qd2 {[%clk 0:00:03]}  Nc6 {[%clk 0:00:21]} 33. Rxe4 {[%clk 0:00:04]}  Nxb4 {[%clk 0:00:20]} 34. Rxb4 {[%clk 0:00:03]}  Qxd6+ {[%clk 0:00:20]} 35. Qxd6 {[%clk 0:00:03]}  Rxd6 {[%clk 0:00:21]} 36. Rxb7+ {[%clk 0:00:03]}  Kh6 {[%clk 0:00:21]} 37. Rxa7 {[%clk 0:00:04]}  Rd2 {[%clk 0:00:21]} 38. Kg3 {[%clk 0:00:05]}  Ra2 {[%clk 0:00:21]} 39. Kf3 {[%clk 0:00:05]}  f5 {[%clk 0:00:19]} 40. Kg3 {[%clk 0:00:03]}  Kg5 {[%clk 0:00:19]} 41. a4 {[%clk 0:00:03]}  h5 {[%clk 0:00:18]} 42. h4+ {[%clk 0:00:03]}  Kf6 {[%clk 0:00:18]} 43. Kf3 {[%clk 0:00:04]}  Ke5 {[%clk 0:00:17]} 44. Ra6 {[%clk 0:00:03]}  Rxa4 {[%clk 0:00:16]} 45. Rxa4 {[%clk 0:00:03]}  Kf6 {[%clk 0:00:16]} 46. Ra6+ {[%clk 0:00:04]}  Ke5 {[%clk 0:00:16]} 47. Ra7 {[%clk 0:00:04]}  Kf6 {[%clk 0:00:16]} 48. Ra6+ {[%clk 0:00:05]}  Kg7 {[%clk 0:00:16]} 49. Rb6 {[%clk 0:00:05]}  Kh6 {[%clk 0:00:16]} 50. Kf4 {[%clk 0:00:05]}  Kg7 {[%clk 0:00:17]} 51. Kg5 {[%clk 0:00:05]}  Kf7 {[%clk 0:00:17]} 52. Rxg6 {[%clk 0:00:05]}  Ke7 {[%clk 0:00:18]} 53. Rf6 {[%clk 0:00:06]}  Kd7 {[%clk 0:00:18]} 54. Rxf5 {[%clk 0:00:07]}  Kd6 {[%clk 0:00:18]} 55. Rf6+ {[%clk 0:00:07]}  Ke5 {[%clk 0:00:19]} 56. Rh6 {[%clk 0:00:07]}  Ke4 {[%clk 0:00:19]} 57. Rxh5 {[%clk 0:00:08]}  Kd3 {[%clk 0:00:19]} 58. Rh6 {[%clk 0:00:09]}  Ke2 {[%clk 0:00:20]} 59. Rf6 {[%clk 0:00:09]}  Kf1 {[%clk 0:00:20]} 60. h5 {[%clk 0:00:10]}  Kg1 {[%clk 0:00:21]} 61. h6 {[%clk 0:00:11]}  Kf1 {[%clk 0:00:22]} 62. h7 {[%clk 0:00:12]}  Ke2 {[%clk 0:00:22]} 63. h8=Q {[%clk 0:00:13]}  Kf1 {[%clk 0:00:23]} 64. Qa8 {[%clk 0:00:14]}  Kg1 {[%clk 0:00:21]} 65. Rb6 {[%clk 0:00:14]}  Kxf2 {[%clk 0:00:19]} 66. Rb2+ {[%clk 0:00:14]}  Kg1 {[%clk 0:00:18]} 67. e4 {[%clk 0:00:15]}  Kh2 {[%clk 0:00:15]} 68. g4+ {[%clk 0:00:16]}  Kg3 {[%clk 0:00:15]} 69. Qa3# {[%clk 0:00:17]} 1-0